Body,Body Name,Date,TransNo,Amount � (Excl VAT),Supplier name,Description,Expense Area,Expense Type,Expense Code
http://opendatacommunities.org/id/london-borough-council/sutton,London Borough of Sutton,23/07/2021,10002880,9.99, TWINKL LIMITED,TWINKL SUBSCRIPTION,Health and Wellbeing,Equipment And Materials Purchase,A40000
http://opendatacommunities.org/id/london-borough-council/sutton,London Borough of Sutton,22/07/2021,10002880,83.45, SMYTHS TOYS CROYDON,TOYS & EQUIPMENT,Health and Wellbeing,Equipment And Materials Purchase,A40000
http://opendatacommunities.org/id/london-borough-council/sutton,London Borough of Sutton,21/07/2021,10002880,26.97, AMAZON.CO.UK HD8ZY4515,TOYS & EQUIPMENT,Health and Wellbeing,Equipment And Materials Purchase,A40000
http://opendatacommunities.org/id/london-borough-council/sutton,London Borough of Sutton,15/07/2021,10002880,500.8, MANOMANO,MARQUEE PARTY TENT PAVILLION - PLAY SERVICE,Health and Wellbeing,Equipment And Materials Purchase,A40000
http://opendatacommunities.org/id/london-borough-council/sutton,London Borough of Sutton,15/07/2021,10002880,18.19, AMZNMKTPLACE AMAZON.CO,TOYS & EQUIPMENT,Health and Wellbeing,Equipment And Materials Purchase,A40000
http://opendatacommunities.org/id/london-borough-council/sutton,London Borough of Sutton,15/07/2021,10002880,100, IZ  RSH ENTERTAINM,FARM VISIT DEPOSIT,Health and Wellbeing,Equipment And Materials Purchase,A40000
http://opendatacommunities.org/id/london-borough-council/sutton,London Borough of Sutton,13/07/2021,10002880,13.5, ARGOS LTD,TOYS & EQUIPMENT,Health and Wellbeing,Equipment And Materials Purchase,A40000
http://opendatacommunities.org/id/london-borough-council/sutton,London Borough of Sutton,07/07/2021,10002880,38, BAKER ROSS,ART EQUIPMENT,Health and Wellbeing,Equipment And Materials Purchase,A40000
http://opendatacommunities.org/id/london-borough-council/sutton,London Borough of Sutton,13/07/2021,10002880,23.9, AMZNMKTPLACE AMAZON.CO,TOYS & EQUIPMENT,Health and Wellbeing,PAT Testing,A40005
http://opendatacommunities.org/id/london-borough-council/sutton,London Borough of Sutton,19/07/2021,10002880,16.84, AMZNMKTPLACE,TOYS & EQUIPMENT,Health and Wellbeing,Provisions,A41006
http://opendatacommunities.org/id/london-borough-council/sutton,London Borough of Sutton,18/07/2021,10002880,49.97, W M MORRISONS.COM,GROCERIES,Health and Wellbeing,Provisions,A41006
http://opendatacommunities.org/id/london-borough-council/sutton,London Borough of Sutton,22/07/2021,10002880,119.04, ASDA SUPERSTORE,GROCERIES,Health and Wellbeing,Provisions,A41006
http://opendatacommunities.org/id/london-borough-council/sutton,London Borough of Sutton,22/07/2021,10002880,66.97, BOOKER LIMITED CROYDON,FOOD/MATERIALS (HAF PROGRAMME),Health and Wellbeing,Provisions,A41006
http://opendatacommunities.org/id/london-borough-council/sutton,London Borough of Sutton,25/07/2021,10002880,38.54, ASDA STORES,GROCERIES,Health and Wellbeing,Provisions,A41006
http://opendatacommunities.org/id/london-borough-council/sutton,London Borough of Sutton,06/07/2021,10002880,85.41, W M MORRISONS.COM,GROCERIES,Health and Wellbeing,Provisions,A41006
http://opendatacommunities.org/id/london-borough-council/sutton,London Borough of Sutton,29/06/2021,10002880,5.44, ASDA SUPERSTORE,GROCERIES,Health and Wellbeing,Provisions,A41006
http://opendatacommunities.org/id/london-borough-council/sutton,London Borough of Sutton,21/07/2021,10002880,3.06, FACEBK  MFNLB4KJ72,SOCIAL MEDIA POSTS,Health and Wellbeing,Community Initiatives,A44288
http://opendatacommunities.org/id/london-borough-council/sutton,London Borough of Sutton,19/07/2021,10002880,4.17, FACEBK  ZLWYA4FJ72,SOCIAL MEDIA POSTS,Health and Wellbeing,Publicity,A44266
http://opendatacommunities.org/id/london-borough-council/sutton,London Borough of Sutton,19/07/2021,10002880,14.17, FACEBK V6PHJ5PJE2,SOCIAL MEDIA POSTS,Health and Wellbeing,Publicity,A44266
http://opendatacommunities.org/id/london-borough-council/sutton,London Borough of Sutton,18/07/2021,10002880,2.5, FACEBK  K77KF4PJ72,SOCIAL MEDIA POSTS,Health and Wellbeing,Publicity,A44266
http://opendatacommunities.org/id/london-borough-council/sutton,London Borough of Sutton,17/07/2021,10002880,2.5, FACEBK  EDTRE43K72,SOCIAL MEDIA POSTS,Health and Wellbeing,Publicity,A44266
http://opendatacommunities.org/id/london-borough-council/sutton,London Borough of Sutton,16/07/2021,10002880,2.5, FACEBK  G59YM4BK72,SOCIAL MEDIA POSTS,Health and Wellbeing,Publicity,A44266
http://opendatacommunities.org/id/london-borough-council/sutton,London Borough of Sutton,24/07/2021,10002880,14.17, FACEBK PC7NB5BKE2,SOCIAL MEDIA POSTS,Health and Wellbeing,Publicity,A44266
http://opendatacommunities.org/id/london-borough-council/sutton,London Borough of Sutton,23/07/2021,10002880,5.83, FACEBK  UHM3557K72,SOCIAL MEDIA POSTS,Health and Wellbeing,Publicity,A44266
http://opendatacommunities.org/id/london-borough-council/sutton,London Borough of Sutton,22/07/2021,10002880,151.66, WH SMITH,YOUTH ART EXHIBITION PRIZES,Health and Wellbeing,Publicity,A44266
http://opendatacommunities.org/id/london-borough-council/sutton,London Borough of Sutton,21/07/2021,10002880,48, WALLINGTON CARS AND CO,"TO COLLECT EQUIPMENT FROM CIVIC OFFICES, DELIVERY TO HILL HOUSE ON 22 JULY (JOBS FAIR) AND RETURN THEM ON THE SAME DAY.",Health and Wellbeing,Provider Contract Payments,A44290
http://opendatacommunities.org/id/london-borough-council/sutton,London Borough of Sutton,19/07/2021,10002880,366.5, HIGHSTREETVOUCHERS,GIFT CARD VOUCHERS FOR COVID-19 YOUNG PEOPLE ENGAGEMENT PROJECT,Health and Wellbeing,Provider Contract Payments,A44290
http://opendatacommunities.org/id/london-borough-council/sutton,London Borough of Sutton,09/07/2021,10002880,94.29, DUNELM,MIRROR FOR GARDEN ROOM,Resources,Miscellaneous Expenses,A49000
http://opendatacommunities.org/id/london-borough-council/sutton,London Borough of Sutton,09/07/2021,10002880,83.31, SCREWFIX DIRECT,KEY CABINET SECURITY FOR KEYS,Resources,Miscellaneous Expenses,A49000
http://opendatacommunities.org/id/london-borough-council/sutton,London Borough of Sutton,03/07/2021,10002880,8.32, SPOTIFY UK,MUSIC FOR WEDDINGS,Resources,Miscellaneous Expenses,A49000
http://opendatacommunities.org/id/london-borough-council/sutton,London Borough of Sutton,12/07/2021,10002880,0.48, SCREENCASTIFY UNLIMITE,SCREENCASTIFY SOFTWARE (TO ENABLE PROCUREMENT TO DO TRAINING VIDEOS),Resources,IT Software Purchase,A45040
http://opendatacommunities.org/id/london-borough-council/sutton,London Borough of Sutton,11/07/2021,10002880,17.45, SCREENCASTIFY UNLIMITE,SCREENCASTIFY SOFTWARE (TO ENABLE PROCUREMENT TO DO TRAINING VIDEOS),Resources,IT Software Purchase,A45040
http://opendatacommunities.org/id/london-borough-council/sutton,London Borough of Sutton,19/07/2021,10002880,51.15, MARKS&SPENCER PLC SACA,TRAINING EVENT,Resources,Hospitality,A46020
http://opendatacommunities.org/id/london-borough-council/sutton,London Borough of Sutton,19/07/2021,10002880,22.3, ASDA STORES,TRAINING EVENT,Resources,Hospitality,A46020
http://opendatacommunities.org/id/london-borough-council/sutton,London Borough of Sutton,15/07/2021,10002880,7.65, MAILCHIMP    MONTHLY,WEB HOSTING,Resources,IT Software Purchase,A45040
http://opendatacommunities.org/id/london-borough-council/sutton,London Borough of Sutton,14/07/2021,10002880,278.27, MAILCHIMP    MONTHLY,WEB HOSTING,Resources,IT Software Purchase,A45040
http://opendatacommunities.org/id/london-borough-council/sutton,London Borough of Sutton,02/07/2021,10002880,35.82, AMZNMKTPLACE,"SPLIT - PERIXX PERIDUO-505, ERGONOMIC SPLIT KEYBOARD AND VERTICAL MOUSE COMBO WITH ADJUSTABLE PALM REST AND MEMBRANE LOW PROFILE KEYS, UK LAYOUT (89.59%)",Resources,Equipment And Materials Purchase,A40000
http://opendatacommunities.org/id/london-borough-council/sutton,London Borough of Sutton,02/07/2021,10002880,4.16, AMZNMKTPLACE,BALANCING ENTRY AMOUNT (10.41%),Resources,Equipment And Materials Purchase,A40000
http://opendatacommunities.org/id/london-borough-council/sutton,London Borough of Sutton,01/07/2021,10002880,6.82, AMZNMKTPLACE AMAZON.CO,"SPLIT - YOLETO RUG GRIPPER, CARPET TAPE DOUBLE SIDED HEAVY DUTY STICKY ADHESIVE FOR AREA RUGS TILES WOOD OUTDOOR FLOORING (2.5CM X 20M) (62.11%)",Resources,Equipment And Materials Purchase,A40000
http://opendatacommunities.org/id/london-borough-council/sutton,London Borough of Sutton,01/07/2021,10002880,4.16, AMZNMKTPLACE AMAZON.CO,BALANCING ENTRY AMOUNT (37.89%),Resources,Equipment And Materials Purchase,A40000
http://opendatacommunities.org/id/london-borough-council/sutton,London Borough of Sutton,20/07/2021,10002880,0.14, FOREIGN EXCHANGE FEE,FOREIGN EXCHANGE FEE,Resources,Other Supplies & Services,A44291
http://opendatacommunities.org/id/london-borough-council/sutton,London Borough of Sutton,19/07/2021,10002880,5.08, PORTANT.CO,SUBSCRPTION,Resources,Other Supplies & Services,A44291
http://opendatacommunities.org/id/london-borough-council/sutton,London Borough of Sutton,19/07/2021,10002880,-10.9, REPLACEMENT KEYS LTD,KEYS,Resources,Other Supplies & Services,A44291
http://opendatacommunities.org/id/london-borough-council/sutton,London Borough of Sutton,14/07/2021,10002880,10.9, REPLACEMENT KEYS LTD,KEYS,Resources,Other Supplies & Services,A44291
http://opendatacommunities.org/id/london-borough-council/sutton,London Borough of Sutton,02/07/2021,10002880,15.11, PAYPAL  GSUITEADDON,E41140 9999 - $39.99 DOCUMENT STUDIO.PDF,Resources,Other Supplies & Services,A44291
http://opendatacommunities.org/id/london-borough-council/sutton,London Borough of Sutton,01/07/2021,10002880,30.13, PAYPAL  GSUITEADDON,E41140 9999 - $39.99 DOCUMENT STUDIO.PDF,Resources,Other Supplies & Services,A44291
http://opendatacommunities.org/id/london-borough-council/sutton,London Borough of Sutton,12/07/2021,10002880,192, DOCUSIGN INC. GBP,DOCUSIGN FACILITY FOR PROCUREMENT & CONTRACTS TEAM,Resources,IT Software Purchase,A45040
http://opendatacommunities.org/id/london-borough-council/sutton,London Borough of Sutton,19/07/2021,10002880,0.8, FOREIGN EXCHANGE FEE,FOREIGN EXCHANGE FEE,Resources,Publicity,A44266
http://opendatacommunities.org/id/london-borough-council/sutton,London Borough of Sutton,20/07/2021,10002880,-0.2, FOREIGN EXCHANGE FEE,FOREIGN EXCHANGE FEE,Resources,Publicity,A44266
http://opendatacommunities.org/id/london-borough-council/sutton,London Borough of Sutton,25/07/2021,10002880,25, FACEBK E33N75TFR2,VEOLIA CAREER ADS,Resources,Publicity,A44266
http://opendatacommunities.org/id/london-borough-council/sutton,London Borough of Sutton,24/07/2021,10002880,25, FACEBK 95XG67FFR2,VEOLIA CAREER ADS,Resources,Publicity,A44266
http://opendatacommunities.org/id/london-borough-council/sutton,London Borough of Sutton,23/07/2021,10002880,17, FACEBK XXK665TFR2,VEOLIA CAREER ADS,Resources,Publicity,A44266
http://opendatacommunities.org/id/london-borough-council/sutton,London Borough of Sutton,23/07/2021,10002880,12, FACEBK NX4BF5XFR2,VEOLIA CAREER ADS,Resources,Publicity,A44266
http://opendatacommunities.org/id/london-borough-council/sutton,London Borough of Sutton,23/07/2021,10002880,48.61, FACEBK WUQ5L73BL2,EU SETTLEMENT SCHEME ADS,Resources,Publicity,A44266
http://opendatacommunities.org/id/london-borough-council/sutton,London Borough of Sutton,22/07/2021,10002880,7, FACEBK 8BVM96BFR2,VEOLIA CAREER ADS,Resources,Publicity,A44266
http://opendatacommunities.org/id/london-borough-council/sutton,London Borough of Sutton,22/07/2021,10002880,17, FACEBK TLEUE6XER2,VEOLIA CAREER ADS,Resources,Publicity,A44266
http://opendatacommunities.org/id/london-borough-council/sutton,London Borough of Sutton,28/06/2021,10002880,150, PAYPAL  LGCOMMS2018,PUBLICITY/CRISIS COMMS TRAINING,Resources,Publicity,A44266
http://opendatacommunities.org/id/london-borough-council/sutton,London Borough of Sutton,04/07/2021,10002880,23.89, AMZNMKTPLACE AMAZON.CO,PURCHASE OF MIC WITH LONGER LEAD AND FILTER FOR LIGHT,Resources,Registration & Licence Fees Payable,A44267
http://opendatacommunities.org/id/london-borough-council/sutton,London Borough of Sutton,16/07/2021,10002880,29.04, NOUNPROJECT.COM,SUBSCRPTION FOR COMMS FOR WEBSITES,Resources,Subscriptions,A47010
http://opendatacommunities.org/id/london-borough-council/sutton,London Borough of Sutton,16/07/2021,10002880,-7.25, NOUNPROJECT.COM,NOUN PROJECT SUBSCRIPTION RETURN,Resources,Subscriptions,A47010
http://opendatacommunities.org/id/london-borough-council/sutton,London Borough of Sutton,13/07/2021,10002880,0.2, FOREIGN EXCHANGE FEE,FOREIGN EXCHANGE FEE,Resources,Subscriptions,A47010
http://opendatacommunities.org/id/london-borough-council/sutton,London Borough of Sutton,12/07/2021,10002880,7.26, NOUNPROJECT.COM,MONTHLY SUBSCRIPTIONS,Resources,Subscriptions,A47010
http://opendatacommunities.org/id/london-borough-council/sutton,London Borough of Sutton,21/07/2021,10002880,200.47, MAILCHIMP,MAILCHIMP SUBSCRIPTION,Resources,Subscriptions,A47010
http://opendatacommunities.org/id/london-borough-council/sutton,London Borough of Sutton,24/07/2021,10002880,283.95, ARGOS LTD,CL&G,Resources,"Grants, Contributions & Donations",A47005
http://opendatacommunities.org/id/london-borough-council/sutton,London Borough of Sutton,23/07/2021,10002880,151.95, ARGOS LTD,CL&G,Resources,"Grants, Contributions & Donations",A47005
http://opendatacommunities.org/id/london-borough-council/sutton,London Borough of Sutton,23/07/2021,10002880,399.98, ARGOS LTD,CL&G,Resources,"Grants, Contributions & Donations",A47005
http://opendatacommunities.org/id/london-borough-council/sutton,London Borough of Sutton,22/07/2021,10002880,274, CURRYS ONLINE,CL&G,Resources,"Grants, Contributions & Donations",A47005
http://opendatacommunities.org/id/london-borough-council/sutton,London Borough of Sutton,22/07/2021,10002880,199.99, ARGOS LTD,CL&G,Resources,"Grants, Contributions & Donations",A47005
http://opendatacommunities.org/id/london-borough-council/sutton,London Borough of Sutton,21/07/2021,10002880,-280, ARGOS LTD,CL&G,Resources,"Grants, Contributions & Donations",A47005
http://opendatacommunities.org/id/london-borough-council/sutton,London Borough of Sutton,16/07/2021,10002880,98.94, ARGOS LTD,CL&G,Resources,"Grants, Contributions & Donations",A47005
http://opendatacommunities.org/id/london-borough-council/sutton,London Borough of Sutton,16/07/2021,10002880,548.99, CURRYS ONLINE,CL&G,Resources,"Grants, Contributions & Donations",A47005
http://opendatacommunities.org/id/london-borough-council/sutton,London Borough of Sutton,15/07/2021,10002880,248.95, ARGOS LTD,CL&G,Resources,"Grants, Contributions & Donations",A47005
http://opendatacommunities.org/id/london-borough-council/sutton,London Borough of Sutton,15/07/2021,10002880,249.99, ARGOS LTD,CL&G,Resources,"Grants, Contributions & Donations",A47005
http://opendatacommunities.org/id/london-borough-council/sutton,London Borough of Sutton,15/07/2021,10002880,249.99, ARGOS LTD,CL&G,Resources,"Grants, Contributions & Donations",A47005
http://opendatacommunities.org/id/london-borough-council/sutton,London Borough of Sutton,14/07/2021,10002880,159.99, ARGOS LTD,CL&G,Resources,"Grants, Contributions & Donations",A47005
http://opendatacommunities.org/id/london-borough-council/sutton,London Borough of Sutton,09/07/2021,10002880,43, UCHECK SERVICES,CL&G,Resources,"Grants, Contributions & Donations",A47005
http://opendatacommunities.org/id/london-borough-council/sutton,London Borough of Sutton,08/07/2021,10002880,233.95, ARGOS LTD,CL&G,Resources,"Grants, Contributions & Donations",A47005
http://opendatacommunities.org/id/london-borough-council/sutton,London Borough of Sutton,08/07/2021,10002880,284, CURRYS ONLINE,CL&G,Resources,"Grants, Contributions & Donations",A47005
http://opendatacommunities.org/id/london-borough-council/sutton,London Borough of Sutton,08/07/2021,10002880,143.95, ARGOS LTD,CL&G,Resources,"Grants, Contributions & Donations",A47005
http://opendatacommunities.org/id/london-borough-council/sutton,London Borough of Sutton,07/07/2021,10002880,543.99, CURRYS ONLINE,CL&G,Resources,"Grants, Contributions & Donations",A47005
http://opendatacommunities.org/id/london-borough-council/sutton,London Borough of Sutton,06/07/2021,10002880,169.99, ARGOS LTD,CL&G,Resources,"Grants, Contributions & Donations",A47005
http://opendatacommunities.org/id/london-borough-council/sutton,London Borough of Sutton,06/07/2021,10002880,286.95, ARGOS LTD,CL&G,Resources,"Grants, Contributions & Donations",A47005
http://opendatacommunities.org/id/london-borough-council/sutton,London Borough of Sutton,06/07/2021,10002880,543.99, CURRYS ONLINE,CL&G,Resources,"Grants, Contributions & Donations",A47005
http://opendatacommunities.org/id/london-borough-council/sutton,London Borough of Sutton,29/06/2021,10002880,-344.99, ARGOS LTD,CL&G,Resources,"Grants, Contributions & Donations",A47005
http://opendatacommunities.org/id/london-borough-council/sutton,London Borough of Sutton,29/06/2021,10002880,563.95, ARGOS LTD,CL&G,Resources,"Grants, Contributions & Donations",A47005
http://opendatacommunities.org/id/london-borough-council/sutton,London Borough of Sutton,24/07/2021,10002880,"5,000.00", CS MORRISONS GIFT CARD,PURCHASE OF MORRISONS VOUCHERS FOR USE ON CRISIS GRANTS AND LOANS,Resources,"Grants, Contributions & Donations",A47005
http://opendatacommunities.org/id/london-borough-council/sutton,London Borough of Sutton,24/07/2021,10002880,"3,000.00", CS MORRISONS GIFT CARD,PURCHASE OF MORRISONS VOUCHERS FOR USE ON CRISIS GRANTS AND LOANS,Resources,"Grants, Contributions & Donations",A47005
http://opendatacommunities.org/id/london-borough-council/sutton,London Borough of Sutton,30/06/2021,10002880,244, CURRYS ONLINE,CL&G,Resources,"Grants, Contributions & Donations",A47005
http://opendatacommunities.org/id/london-borough-council/sutton,London Borough of Sutton,30/06/2021,10002880,536.94, ARGOS LTD,CL&G,Resources,"Grants, Contributions & Donations",A47005
http://opendatacommunities.org/id/london-borough-council/sutton,London Borough of Sutton,30/06/2021,10002880,-264.99, ARGOS LTD,CL&G,Resources,"Grants, Contributions & Donations",A47005
http://opendatacommunities.org/id/london-borough-council/sutton,London Borough of Sutton,29/06/2021,10002880,304, CURRYS ONLINE,CL&G,Resources,"Grants, Contributions & Donations",A47005
http://opendatacommunities.org/id/london-borough-council/sutton,London Borough of Sutton,29/06/2021,10002880,304, CURRYS ONLINE,CL&G,Resources,"Grants, Contributions & Donations",A47005
http://opendatacommunities.org/id/london-borough-council/sutton,London Borough of Sutton,29/06/2021,10002880,489.99, ARGOS LTD,CL&G,Resources,"Grants, Contributions & Donations",A47005
http://opendatacommunities.org/id/london-borough-council/sutton,London Borough of Sutton,01/07/2021,10002880,253.95, ARGOS LTD,CL&G,Resources,"Grants, Contributions & Donations",A47005
http://opendatacommunities.org/id/london-borough-council/sutton,London Borough of Sutton,16/07/2021,10002880,55.5, WWW.GOV.UK,PROBATE CERTIFICATES,Resources,Miscellaneous Expenses,A49000
http://opendatacommunities.org/id/london-borough-council/sutton,London Borough of Sutton,09/07/2021,10002880,253.95, ARGOS LTD,CL&G,Resources,Miscellaneous Expenses,A49000
http://opendatacommunities.org/id/london-borough-council/sutton,London Borough of Sutton,16/07/2021,10002880,108, LBSUTTON,REFUND OF TEST TRANSACTION RE ISSUE ON WEBSITE FOR LOCAL STUDIES CENTRE,Resources,Miscellaneous Expenses,A49000
http://opendatacommunities.org/id/london-borough-council/sutton,London Borough of Sutton,16/07/2021,10002880,-108, LBSUTTON,TEST TRANSACTION RE ISSUE ON WEBSITE FOR LOCAL STUDIES CENTRE,Resources,Miscellaneous Expenses,A49000
http://opendatacommunities.org/id/london-borough-council/sutton,London Borough of Sutton,12/07/2021,10002880,1.5, WWW.GOV.UK,PROBATE/WILL SEARCH,Resources,Legal Services,A44025
http://opendatacommunities.org/id/london-borough-council/sutton,London Borough of Sutton,09/07/2021,10002880,1.5, WWW.GOV.UK,PROBATE/WILL SEARCH,Resources,Legal Services,A44025
http://opendatacommunities.org/id/london-borough-council/sutton,London Borough of Sutton,21/07/2021,10002880,189.12, ARGOS LTD,PAYMENT FROM GRANT SPECIFICALLY FOR HOMELESS HOUSEHOLDS,Environment Housing and Neighbourhoods,Other Supplies & Services,A44291
http://opendatacommunities.org/id/london-borough-council/sutton,London Borough of Sutton,08/07/2021,10002880,216.67, B & Q 1191,PURCHASE OF DEWALT POWER TOOLS TO ENABLE STAFF TO INSTALL AND MAINTAIN SIGNS FOR PARKING SERVICES AND COMMUNITY SAFETY - ESSENTIAL BUSINESS NEED,Environment Housing and Neighbourhoods,Equipment And Materials Purchase,A40000
http://opendatacommunities.org/id/london-borough-council/sutton,London Borough of Sutton,20/07/2021,10002880,186.67, YELLOWVANCOMPANY.COM,COURIER NEEDED DUE TO PLACEMENT MOVE,Peoples Services,Client Care/Assistance,A61011
http://opendatacommunities.org/id/london-borough-council/sutton,London Borough of Sutton,07/07/2021,10002880,39.95, CLEANCARE IRELAND LTD,CLEANING SUPPLIES FOR STAFF AT THE QUAD,Peoples Services,Cleaning Supplies,A27020
http://opendatacommunities.org/id/london-borough-council/sutton,London Borough of Sutton,25/07/2021,10002880,18.48, THE CONNOISSEUR,MC,Peoples Services,Equipment And Materials Purchase,A40000
http://opendatacommunities.org/id/london-borough-council/sutton,London Borough of Sutton,24/07/2021,10002880,6, PPOINT_ D.A.R MINI MAR,DR,Peoples Services,Equipment And Materials Purchase,A40000
http://opendatacommunities.org/id/london-borough-council/sutton,London Borough of Sutton,24/07/2021,10002880,26.73, ASDA SUPERSTORE,JD,Peoples Services,Equipment And Materials Purchase,A40000
http://opendatacommunities.org/id/london-borough-council/sutton,London Borough of Sutton,06/07/2021,10002880,101, POST OFFICE COUNTER,JB PP,Peoples Services,Equipment And Materials Purchase,A40000
http://opendatacommunities.org/id/london-borough-council/sutton,London Borough of Sutton,01/07/2021,10002880,232.5, WWW.BEDS.CO.UK,MC,Peoples Services,Equipment And Materials Purchase,A40000
http://opendatacommunities.org/id/london-borough-council/sutton,London Borough of Sutton,23/07/2021,10002880,14.21, PPOINT_ D.A.R MINI MAR,DR,Peoples Services,Equipment And Materials Purchase,A40000
http://opendatacommunities.org/id/london-borough-council/sutton,London Borough of Sutton,21/07/2021,10002880,12.94, PPOINT_ D.A.R MINI MAR,DR,Peoples Services,Equipment And Materials Purchase,A40000
http://opendatacommunities.org/id/london-borough-council/sutton,London Borough of Sutton,21/07/2021,10002880,8.45, MCDONALDS,MC ACTIVITY,Peoples Services,Equipment And Materials Purchase,A40000
http://opendatacommunities.org/id/london-borough-council/sutton,London Borough of Sutton,20/07/2021,10002880,27.99, ARGOS LTD,DR,Peoples Services,Equipment And Materials Purchase,A40000
http://opendatacommunities.org/id/london-borough-council/sutton,London Borough of Sutton,08/07/2021,10002880,236.67, CURRYS ONLINE,EQUIPMENT REQUIRED FOR A YOUNG PERSON,Peoples Services,Asylum Seekers,A61002
http://opendatacommunities.org/id/london-borough-council/sutton,London Borough of Sutton,14/07/2021,10002880,264.42, EASYJET,YOUNG PERSON FLIGHTS TO BULGARIA TO VISIT FAMILY,Peoples Services,C.C.A Travel & Subsistance,A61010
http://opendatacommunities.org/id/london-borough-council/sutton,London Borough of Sutton,14/07/2021,10002880,56.77, MINICABIT,TAXI REQUIRED FOR A YOUNG PERSON,Peoples Services,C.C.A Travel & Subsistance,A61010
http://opendatacommunities.org/id/london-borough-council/sutton,London Borough of Sutton,09/07/2021,10002880,131, SQ  ROSEHILL CARS LTD,CAB JOURNEY,Peoples Services,C.C.A Travel & Subsistance,A61010
http://opendatacommunities.org/id/london-borough-council/sutton,London Borough of Sutton,14/07/2021,10002880,53.95, ARGOS LTD,ESSENTIALS,Peoples Services,Set Up Costs - Children Leaving Care,A61021
http://opendatacommunities.org/id/london-borough-council/sutton,London Borough of Sutton,13/07/2021,10002880,90, WILKO.COM,ESSENTIALS,Peoples Services,Set Up Costs - Children Leaving Care,A61021
http://opendatacommunities.org/id/london-borough-council/sutton,London Borough of Sutton,29/06/2021,10002880,602.94, ARGOS LTD,ARGOS FURNITURE AND W MACHINE FOR CLIENT WITHIN LEAVING CARE TEAM.,Peoples Services,Set Up Costs - Children Leaving Care,A61021
http://opendatacommunities.org/id/london-borough-council/sutton,London Borough of Sutton,28/06/2021,10002880,443.99, CURRYS ONLINE,CURRYS T.DRYER MICROWAVE FOR LEAVING CARE TEAM.,Peoples Services,Set Up Costs - Children Leaving Care,A61021
http://opendatacommunities.org/id/london-borough-council/sutton,London Borough of Sutton,28/06/2021,10002880,289.99, ARGOS LTD,ARGOS WASHING MACHINE FOR LEAVING CARE TEAM.,Peoples Services,Set Up Costs - Children Leaving Care,A61021
http://opendatacommunities.org/id/london-borough-council/sutton,London Borough of Sutton,15/07/2021,10002880,58.7, ARGOS LTD,SETTING UP ALLOWANCE FOR YOUNG PERSON,Peoples Services,Set Up Costs - Children Leaving Care,A61021
http://opendatacommunities.org/id/london-borough-council/sutton,London Borough of Sutton,22/07/2021,10002880,-169, BRITISH HEART FOUNDATI,SH REFUND SETV UP BHF,Peoples Services,Set Up Costs - Children Leaving Care,A61021
http://opendatacommunities.org/id/london-borough-council/sutton,London Borough of Sutton,24/07/2021,10002880,183.32, ARGOS LTD,FD,Peoples Services,Set Up Costs - Children Leaving Care,A61021
http://opendatacommunities.org/id/london-borough-council/sutton,London Borough of Sutton,21/07/2021,10002880,50, AMAZON.CO.UK DT6DU6MH5,SW SET,Peoples Services,Set Up Costs - Children Leaving Care,A61021
http://opendatacommunities.org/id/london-borough-council/sutton,London Borough of Sutton,19/07/2021,10002880,150, AMAZON.CO.UK 145VR0IM5,SW SET UP,Peoples Services,Set Up Costs - Children Leaving Care,A61021
http://opendatacommunities.org/id/london-borough-council/sutton,London Borough of Sutton,20/07/2021,10002880,119, DREAMS LTD,HARRIS TRADITIONAL SPRING MATTRESS,Peoples Services,Set Up Costs - Children Leaving Care,A61021
http://opendatacommunities.org/id/london-borough-council/sutton,London Borough of Sutton,15/07/2021,10002880,-50, ARGOS LTD,ESSENTIALS,Peoples Services,Set Up Costs - Children Leaving Care,A61021
http://opendatacommunities.org/id/london-borough-council/sutton,London Borough of Sutton,15/07/2021,10002880,-3.95, ARGOS LTD,ESSENTIALS,Peoples Services,Set Up Costs - Children Leaving Care,A61021
http://opendatacommunities.org/id/london-borough-council/sutton,London Borough of Sutton,06/07/2021,10002880,"1,175.73", SUPAFLORS,SUPAFLORS PURCHASE FOR THE LEAVING CARE TEAM.,Peoples Services,Set Up Costs - Children Leaving Care,A61021
http://opendatacommunities.org/id/london-borough-council/sutton,London Borough of Sutton,01/07/2021,10002880,36.99, AMZNMKTPLACE AMAZON.CO,SPLIT - LUXURY 10MM THICK PU CARPET UNDERLAY ROLLS | 11M LONG / 1.37M WIDE FOR 15M� TOTAL AREA | UK MANUFACTURED QUALITY LUXURY FEEL (100%),Peoples Services,Set Up Costs - Children Leaving Care,A61021
http://opendatacommunities.org/id/london-borough-council/sutton,London Borough of Sutton,13/07/2021,10002880,166.66, CURRYS ONLINE,CURRYS FRIDGE,Peoples Services,Set Up Costs - Children Leaving Care,A61021
http://opendatacommunities.org/id/london-borough-council/sutton,London Borough of Sutton,22/07/2021,10002880,60, HOTEL AT BOOKING.COM,HOTEL NEEDED FOR WEEKEND CONTACT,Peoples Services,Approved Lodgings,A61000
http://opendatacommunities.org/id/london-borough-council/sutton,London Borough of Sutton,22/07/2021,10002880,50, HOTEL AT BOOKING.COM,HOTEL NEEDED FOR WEEKEND CONTACT,Peoples Services,Approved Lodgings,A61000
http://opendatacommunities.org/id/london-borough-council/sutton,London Borough of Sutton,22/07/2021,10002880,-50, HOTEL AT BOOKING.COM,HOTEL NEEDED FOR WEEKEND CONTACT,Peoples Services,Approved Lodgings,A61000
http://opendatacommunities.org/id/london-borough-council/sutton,London Borough of Sutton,07/07/2021,10002880,91.78, TRAVELODGE,HOTEL STAY,Peoples Services,Approved Lodgings,A61000
http://opendatacommunities.org/id/london-borough-council/sutton,London Borough of Sutton,06/07/2021,10002880,160, HOTEL IBIS,HOTEL STAY,Peoples Services,Client Care/Assistance,A61011
http://opendatacommunities.org/id/london-borough-council/sutton,London Borough of Sutton,07/07/2021,10002880,70.73, HOTEL AT BOOKING.COM,HOTEL REQUIRED FOR A FAMILY,Peoples Services,Accommodation - Supported Living,A62001
http://opendatacommunities.org/id/london-borough-council/sutton,London Borough of Sutton,14/07/2021,10002880,50, PARKERS HOUSE B&B,HOTEL STAY,Peoples Services,Accommodation - Supported Living,A62001
http://opendatacommunities.org/id/london-borough-council/sutton,London Borough of Sutton,14/07/2021,10002880,50, PARKERS HOUSE B&B,HOTEL STAY,Peoples Services,Accommodation - Supported Living,A62001
http://opendatacommunities.org/id/london-borough-council/sutton,London Borough of Sutton,01/07/2021,10002880,7.97, AMZNMKTPLACE,SPLIT - COLLINS ESSENTIAL A4 WEEK TO VIEW 2021 DIARY - BLACK (100%),Peoples Services,Equipment And Materials Purchase,A40000
http://opendatacommunities.org/id/london-borough-council/sutton,London Borough of Sutton,01/07/2021,10002880,14.24, AMZNMKTPLACE,"SPLIT - WHATMORE UK 42 LITRE CRYSTAL STORAGE BOX AND LID, WHITE (100%)",Peoples Services,Equipment And Materials Purchase,A40000
http://opendatacommunities.org/id/london-borough-council/sutton,London Borough of Sutton,29/06/2021,10002880,44.95, AMZNMKTPLACE AMAZON.CO,SPLIT - HYGIPLAS COLOUR CODED CHOPPING BOARD SET WITH RACK & WALL CHART 6 PIECES (100%),Peoples Services,Equipment And Materials Purchase,A40000
http://opendatacommunities.org/id/london-borough-council/sutton,London Borough of Sutton,28/06/2021,10002880,66.44, ASDA GROCERIES ONLINE,ASDA PURCHASE FOR THE LEAVING CARE TEAM / THORNTON ROAD.,Peoples Services,Equipment And Materials Purchase,A40000
http://opendatacommunities.org/id/london-borough-council/sutton,London Borough of Sutton,28/06/2021,10002880,-0.3, ASDA GROCERIES ONLINE,ASDA REFUND FOR THE LEAVING CARE TEAM / THORNTON ROAD.,Peoples Services,Equipment And Materials Purchase,A40000
http://opendatacommunities.org/id/london-borough-council/sutton,London Borough of Sutton,28/06/2021,10002880,-4.99, ASDA GROCERIES ONLINE,ASDA REFUND FOR THE LEAVING CARE TEAM / THORNTON ROAD.,Peoples Services,Equipment And Materials Purchase,A40000
http://opendatacommunities.org/id/london-borough-council/sutton,London Borough of Sutton,30/06/2021,10002880,73, B&Q DIRECT,AMAZON PURCHASE FOR THE LEAVING CARE TEAM.,Peoples Services,Equipment And Materials Purchase,A40000
http://opendatacommunities.org/id/london-borough-council/sutton,London Borough of Sutton,30/06/2021,10002880,32.83, AMZNMKTPLACE,AMAZON PURCHASE FOR THE LEAVING CARE TEAM.,Peoples Services,Equipment And Materials Purchase,A40000
http://opendatacommunities.org/id/london-borough-council/sutton,London Borough of Sutton,30/06/2021,10002880,7.98, AMZNMKTPLACE,SPLIT - HAPILEAP OVER DOOR HOOKS 5 HOOKS COAT CLOTHES STORAGE RACK WALL HANGER (5 HOOK (WHITE)) (100%),Peoples Services,Equipment And Materials Purchase,A40000
http://opendatacommunities.org/id/london-borough-council/sutton,London Borough of Sutton,15/07/2021,10002880,64.99, AMAZON.CO.UK M740H81A5,"SPLIT - PANASONIC KX-TGC224EB DECT CORDLESS PHONE WITH ANSWERING MACHINE, 1.6 INCH EASY-TO-READ BACKLIT DISPLAY, NUISANCE CALL BLOCKER, HANDS-FREE SPEAKERPHON (100%)",Peoples Services,Equipment And Materials Purchase,A40000
http://opendatacommunities.org/id/london-borough-council/sutton,London Borough of Sutton,17/07/2021,10002880,8.61, AMZNMKTPLACE,"SPLIT - C 9 CATERING LEMON FLOOR GEL, YELLOW, 5 LITRE (100%)",Peoples Services,Equipment And Materials Purchase,A40000
http://opendatacommunities.org/id/london-borough-council/sutton,London Borough of Sutton,17/07/2021,10002880,19.69, AMZNMKTPLACE,"SPLIT - ARIEL ALL-IN-1 PODS WASHING LIQUID LAUNDRY DETERGENT TABLETS/CAPSULES, 90 WASHES (30 X 3) WITH TOUCH OF LENOR FRESHNESS (100%)",Peoples Services,Equipment And Materials Purchase,A40000
http://opendatacommunities.org/id/london-borough-council/sutton,London Borough of Sutton,16/07/2021,10002880,18.99, AMZNMKTPLACE,SPLIT - CUSHEEN TOILET ROLL BULK BUY - PACK OF 60 ROLLS (1 X 60 PACK) QUILTED WHITE 3 PLY TOILET ROLLS (100%),Peoples Services,Equipment And Materials Purchase,A40000
http://opendatacommunities.org/id/london-borough-council/sutton,London Borough of Sutton,16/07/2021,10002880,14.61, AMZNMKTPLACE,"SPLIT - PAROZONE THICK ORIGINAL BLEACH, 750ML, PACK OF 12 (100%)",Peoples Services,Equipment And Materials Purchase,A40000
http://opendatacommunities.org/id/london-borough-council/sutton,London Borough of Sutton,16/07/2021,10002880,18.98, AMZNMKTPLACE,"SPLIT - DETTOL WIPES ANTIBACTERIAL BULK SURFACE CLEANING, MULTIPACK OF 6 X 126, TOTAL 756 WIPES (100%)",Peoples Services,Equipment And Materials Purchase,A40000
http://opendatacommunities.org/id/london-borough-council/sutton,London Borough of Sutton,16/07/2021,10002880,11.99, AMZNMKTPLACE,"SPLIT - ABBEY NO.16 SOCKET COTTON MOP HEAD, PACK OF 5, RED (30.37%)",Peoples Services,Equipment And Materials Purchase,A40000
http://opendatacommunities.org/id/london-borough-council/sutton,London Borough of Sutton,16/07/2021,10002880,15.5, AMZNMKTPLACE,SPLIT - DCS MEDIUM DUTY BLACK REFUSE SACKS/BIN BAGS/BIN LINERS(200PACK) (39.26%),Peoples Services,Equipment And Materials Purchase,A40000
http://opendatacommunities.org/id/london-borough-council/sutton,London Borough of Sutton,16/07/2021,10002880,11.99, AMZNMKTPLACE,"SPLIT - ABBEY NO.16 SOCKET COTTON MOP HEAD, PACK OF 5, YELLOW (30.37%)",Peoples Services,Equipment And Materials Purchase,A40000
http://opendatacommunities.org/id/london-borough-council/sutton,London Borough of Sutton,16/07/2021,10002880,7.19, AMZNMKTPLACE,SPLIT - THE PINK STUFF MIRACLE CLEANING SET TRIPLE PACK MRS HINCH APPROVED A40000 G03070 (100%),Peoples Services,Equipment And Materials Purchase,A40000
http://opendatacommunities.org/id/london-borough-council/sutton,London Borough of Sutton,19/07/2021,10002880,42.94, ASDA GROCERIES ONLINE,FOOD SHOPPING FOR THORNTON ROAD YOUNG PEOPLE,Peoples Services,Equipment And Materials Purchase,A40000
http://opendatacommunities.org/id/london-borough-council/sutton,London Borough of Sutton,19/07/2021,10002880,-0.96, ASDA GROCERIES ONLINE,FOOD SHOPPING FOR THORNTON ROAD YOUNG PEOPLE,Peoples Services,Equipment And Materials Purchase,A40000
http://opendatacommunities.org/id/london-borough-council/sutton,London Borough of Sutton,18/07/2021,10002880,5.09, AMZNMKTPLACE,"SPLIT - DUSTPAN AND BRUSH SET , CHOOSE YOUR COLOUR (GREEN) (100%)",Peoples Services,Equipment And Materials Purchase,A40000
http://opendatacommunities.org/id/london-borough-council/sutton,London Borough of Sutton,18/07/2021,10002880,9, AMZNMKTPLACE,"SPLIT - DETTOL ANTIBACTERIAL BULK SURFACE CLEANING SPRAY, 750 ML, PACK OF 6 (PACKAGING MAY VARY) (100%)",Peoples Services,Equipment And Materials Purchase,A40000
http://opendatacommunities.org/id/london-borough-council/sutton,London Borough of Sutton,18/07/2021,10002880,3.99, AMZNMKTPLACE,SPLIT - TOWELOGY� HEAVY DUTY COTTON DISH CLOTHS EXTRA LARGE SUPER ABSORBENT CLEANING SCRUBBING WASHING DRYING RAGS KITCHEN TEA TOWELS COLOUR CODED DISHCLOTHS (100%),Peoples Services,Equipment And Materials Purchase,A40000
http://opendatacommunities.org/id/london-borough-council/sutton,London Borough of Sutton,18/07/2021,10002880,8.45, AMZNMKTPLACE,SPLIT - TIDYZ 6 PACKS OF 40 HANDY BAGS - CARRIER BAGS - FITS 15L PEDAL BIN - EXTRA STRONG TIE HANDLE 240 BAGS IN TOTAL (100%),Peoples Services,Equipment And Materials Purchase,A40000
http://opendatacommunities.org/id/london-borough-council/sutton,London Borough of Sutton,17/07/2021,10002880,8.73, AMZNMKTPLACE,"SPLIT - FLASH KITCHEN CLEANER SPRAY, GREASE REMOVER, FRESH CITRUS, 4.5 LITRES (450 ML X 10) (39.66%)",Peoples Services,Equipment And Materials Purchase,A40000
http://opendatacommunities.org/id/london-borough-council/sutton,London Borough of Sutton,17/07/2021,10002880,3.28, AMZNMKTPLACE,"SPLIT - ARITRADERSLTD NEW 100% COTTON TERRY TEA TOWELS - ASSORTED COLOURS SUPER ABSORBENT KITCHEN TEA TOWELS IN PACK OF 3 6 9 12 15 (TERRY TEA TOWEL, PACK OF (14.9%)",Peoples Services,Equipment And Materials Purchase,A40000
http://opendatacommunities.org/id/london-borough-council/sutton,London Borough of Sutton,17/07/2021,10002880,10, AMZNMKTPLACE,"SPLIT - FLASH BATHROOM CLEANER SPRAY, LONG LASTING SHINE, FRESH, 4.5 LITRES (450 ML X 10) (45.44%)",Peoples Services,Equipment And Materials Purchase,A40000
http://opendatacommunities.org/id/london-borough-council/sutton,London Borough of Sutton,13/07/2021,10002880,13.2, AMZNMKTPLACE AMAZON.CO,SPLIT - SAFETY FIRST AID HSE 21-50 PERSONS FIRST AID KIT REFILL PACK (56.92%),Peoples Services,Equipment And Materials Purchase,A40000
http://opendatacommunities.org/id/london-borough-council/sutton,London Borough of Sutton,13/07/2021,10002880,9.99, AMZNMKTPLACE AMAZON.CO,"SPLIT - XUXRUS 5LITER SMALL TRASH BIN BAGS BIODEGRADABLE 1.2 GALLON GARBAGE BAGS WASTEBASKET LINERS FOR HOME OFFICE, LAWN,BATHROOM,120 COUNT,WHITE (FITS 0.8-1 (43.08%)",Peoples Services,Equipment And Materials Purchase,A40000
http://opendatacommunities.org/id/london-borough-council/sutton,London Borough of Sutton,13/07/2021,10002880,7.13, AMZNMKTPLACE AMAZON.CO,"SPLIT - ADDIS HOUSEWARES DUSTPAN AND SOFT BRUSH SET, METALLIC SILVER (100%)",Peoples Services,Equipment And Materials Purchase,A40000
http://opendatacommunities.org/id/london-borough-council/sutton,London Borough of Sutton,12/07/2021,10002880,40.37, ASDA GROCERIES ONLINE,ITEMS REQUIRED FOR A CARE HOME,Peoples Services,Equipment And Materials Purchase,A40000
http://opendatacommunities.org/id/london-borough-council/sutton,London Borough of Sutton,12/07/2021,10002880,-1.34, ASDA GROCERIES ONLINE,FOOD SHOPPING FOR A CARE HOME,Peoples Services,Equipment And Materials Purchase,A40000
http://opendatacommunities.org/id/london-borough-council/sutton,London Borough of Sutton,11/07/2021,10002880,27.98, AMZNMKTPLACE AMAZON.CO,"SPLIT - ADULT WATERPROOF CAST COVER PROTECTOR HAND FOR SHOWER, PLASTER BANDAGE PROTECTOR WATERTIGHT FOR BROKEN HAND, WRIST,REUSABLE KEEPS HAND DRY FITS UNISEX (100%)",Peoples Services,Equipment And Materials Purchase,A40000
http://opendatacommunities.org/id/london-borough-council/sutton,London Borough of Sutton,10/07/2021,10002880,6, ASDA STORES 7134,FOOD SHOPPING FOR A CARE HOME,Peoples Services,Equipment And Materials Purchase,A40000
http://opendatacommunities.org/id/london-borough-council/sutton,London Borough of Sutton,15/07/2021,10002880,25.83, FO CROYDON VIA RLLR.CO,SUPERVISED CONTACT,Peoples Services,Miscellaneous Expenses,A49000
http://opendatacommunities.org/id/london-borough-council/sutton,London Borough of Sutton,05/07/2021,10002880,90.83, HOLIDAY INNS,EMERGENCY ACCOMMODATION SM,Peoples Services,Approved Lodgings,A61000
http://opendatacommunities.org/id/london-borough-council/sutton,London Borough of Sutton,30/06/2021,10002880,31, SQ  ROSEHILL CARS LTD,"ROSEHILL CARS, CAB FOR ASYLUM SEEKERS TEAM.",Peoples Services,C.C.A Travel & Subsistance,A61010
http://opendatacommunities.org/id/london-borough-council/sutton,London Borough of Sutton,30/06/2021,10002880,191.88, ZOOM.US 888-799-9666,ZOOM SUBSCRIPTION FOR THE REFERRAL AND ASSESSMENT TEAM.,Peoples Services,Subscriptions,A47010
http://opendatacommunities.org/id/london-borough-council/sutton,London Borough of Sutton,17/07/2021,10002880,159.9, ZOOM.US 888-799-9666,ZOOM NEEDED FOR A TEAM,Peoples Services,Subscriptions,A47010
http://opendatacommunities.org/id/london-borough-council/sutton,London Borough of Sutton,01/07/2021,10002880,682.91, PREMIER INN, PREMIER INN FOR CLIENT WITHIN THE REFERRAL AND ASSESSMENT TEAM.,Peoples Services,Client Care/Assistance,A61011
http://opendatacommunities.org/id/london-borough-council/sutton,London Borough of Sutton,19/07/2021,10002880,"1,388.33", HOLIDAY INNS,CLIENT STAY DUE TO NO HOUSING,Peoples Services,Client Care/Assistance,A61011
http://opendatacommunities.org/id/london-borough-council/sutton,London Borough of Sutton,21/07/2021,10002880,200.42, PREMIER INN,HOTEL STAY NEEDED DUE TO NO HOUSING,Peoples Services,Client Care/Assistance,A61011
http://opendatacommunities.org/id/london-borough-council/sutton,London Borough of Sutton,06/07/2021,10002880,"1,956.80", GAR HOTEL RES, HOLIDAY INN PURCHASE FOR CLIENT WITHIN THE REFERRAL AND ASSESSMENT TEAM.,Peoples Services,Client Care/Assistance,A61011
http://opendatacommunities.org/id/london-borough-council/sutton,London Borough of Sutton,01/07/2021,10002880,112.98, PREMIER INN,PREMIER INN FOR CLIENT WITHIN THE REFERRAL AND ASSESSMENT TEAM.,Peoples Services,Client Care/Assistance,A61011
http://opendatacommunities.org/id/london-borough-council/sutton,London Borough of Sutton,14/07/2021,10002880,20, MUSEUM RESOURCE,SUPERVISED CONTACT,Peoples Services,Equipment And Materials Purchase,A40000
http://opendatacommunities.org/id/london-borough-council/sutton,London Borough of Sutton,01/07/2021,10002880,21, FO CROYDON VIA RLLR.CO,FLIP OUT TICKETS FOR LOOKED AFTER CHILDREN'S TEAM.,Peoples Services,Professional Fees,A44066
http://opendatacommunities.org/id/london-borough-council/sutton,London Borough of Sutton,19/07/2021,10002880,64.5, WWW.OXYGENFREEJUMPING.,ACTIVITY,Peoples Services,Client Care/Assistance,A61011
http://opendatacommunities.org/id/london-borough-council/sutton,London Borough of Sutton,19/07/2021,10002880,41.79, TENPIN.CO.UK,ACTIVITY,Peoples Services,Client Care/Assistance,A61011
http://opendatacommunities.org/id/london-borough-council/sutton,London Borough of Sutton,01/07/2021,10002880,25, LB CROYDON,CROYDON BIRTH CERTIFICATE FOR SOCIAL WORKER IN THE COURT TEAM.,Peoples Services,Equipment And Materials Purchase,A40000
http://opendatacommunities.org/id/london-borough-council/sutton,London Borough of Sutton,22/07/2021,10002880,66.25, POST OFFICE COUNTER,PASSPORT APPLICATION PAYMENT FOR YOUNG PERSON,Peoples Services,Equipment And Materials Purchase,A40000
http://opendatacommunities.org/id/london-borough-council/sutton,London Borough of Sutton,14/07/2021,10002880,20.92, WWW.HOVERTRAVEL.COM,TRAVEL NEEDED FOR SOCIAL WORKER TO PERFORM A VISIT,Peoples Services,C.C.A Travel & Subsistance,A61010
http://opendatacommunities.org/id/london-borough-council/sutton,London Borough of Sutton,15/07/2021,10002880,660.72, TRAVELODGE,"NO RECOURSE TO PUBLIC FUNDS, HOTEL REQUIRED FOR FAMILY",Peoples Services,C.C.A Rent & Utilities,A61009
http://opendatacommunities.org/id/london-borough-council/sutton,London Borough of Sutton,30/06/2021,10002880,286.11, HOLIDAY INNS,HOLIDAY INN FOR NRPF CLIENT.,Peoples Services,Client Care/Assistance,A61011
http://opendatacommunities.org/id/london-borough-council/sutton,London Borough of Sutton,14/07/2021,10002880,69.96, ARGOS LTD,ITEMS NEEDED FOR CLIENT,Peoples Services,Equipment And Materials Purchase,A40000
http://opendatacommunities.org/id/london-borough-council/sutton,London Borough of Sutton,15/07/2021,10002880,183.67, YELLOWVANCOMPANY.COM,COURIER FOR CLIENT MOVING PLACEMENTS,Peoples Services,Client Care/Assistance,A61011
http://opendatacommunities.org/id/london-borough-council/sutton,London Borough of Sutton,20/07/2021,10002880,70, FACEBK  FBNB85FG32,FACEBOOK ADVERTISING FOR FOSTERING RECRUITMENT,Peoples Services,Recruitment Expenses,A15026
http://opendatacommunities.org/id/london-borough-council/sutton,London Borough of Sutton,28/06/2021,10002880,306, PAYPAL  DLF,EVENTBRITE TICKETS FOR SOCIAL WORKER TO ATTEND TRAINING.,Peoples Services,Staff Development And Training,A15022
http://opendatacommunities.org/id/london-borough-council/sutton,London Borough of Sutton,02/07/2021,10002880,436, HOLIDAY INNS,HOLIDAY INN FOR CLIENT WITHIN THE GREEN WEST LOCALITY TEAM.,Peoples Services,Client Care/Assistance,A61011
http://opendatacommunities.org/id/london-borough-council/sutton,London Borough of Sutton,02/07/2021,10002880,218, HOLIDAY INNS,HOLIDAY INN SUTTON FOR CLIENT WITHIN THE GREEN WEST LOCALITY TEAM.,Peoples Services,Client Care/Assistance,A61011
http://opendatacommunities.org/id/london-borough-council/sutton,London Borough of Sutton,08/07/2021,10002880,103.3, DECATHLON UK LIMITED,SETTING UP EQUIPMENT REQUIRED FOR A YOUNG PERSON,Peoples Services,Equipment And Materials Purchase,A40000
http://opendatacommunities.org/id/london-borough-council/sutton,London Borough of Sutton,09/07/2021,10002880,419.12, PREMIER INN,PREMIER INN CROYDON,Peoples Services,Client Care/Assistance,A61011
http://opendatacommunities.org/id/london-borough-council/sutton,London Borough of Sutton,23/07/2021,10002880,288.5, BACKCARE SOLUTIONS LTD,BACKCARE SOLUTIONS BALANCE REMAINING FOR MARK JUSTICE'S EQUIPMENT.,Peoples Services,Equipment And Materials Purchase,A40000
http://opendatacommunities.org/id/london-borough-council/sutton,London Borough of Sutton,19/07/2021,10002880,103.32, ARGOS LTD,ITEMS NEEDED FOR CLIENT,Peoples Services,Equipment And Materials Purchase,A40000
http://opendatacommunities.org/id/london-borough-council/sutton,London Borough of Sutton,05/07/2021,10002880,219, AO RETAIL LIMITED,AO FRIDGE FREEZER FOR HOSPITAL TEAM.,Peoples Services,Equipment And Materials Purchase,A40000
http://opendatacommunities.org/id/london-borough-council/sutton,London Borough of Sutton,29/06/2021,10002880,321, RAFF ELECTRICAL,RAFF ELECTRICAL PURCHASE FOR HOSPITAL TEAM.,Peoples Services,Client Care/Assistance,A61011
http://opendatacommunities.org/id/london-borough-council/sutton,London Borough of Sutton,22/07/2021,10002880,341.15, ACCESS SUTTON,STORAGE SPACE FOR A CLIENT,Peoples Services,Client Care/Assistance,A61011
http://opendatacommunities.org/id/london-borough-council/sutton,London Borough of Sutton,14/07/2021,10002880,-267.5, RAFF ELECTRICAL,SERVICE NO LONGER REQUIRED,Peoples Services,Client Care/Assistance,A61011
http://opendatacommunities.org/id/london-borough-council/sutton,London Borough of Sutton,07/07/2021,10002880,97.37, STORAGEMART UK A-BD369,STORAGE REQUIRED FOR A CLIENT,Peoples Services,Miscellaneous Expenses,A49000
http://opendatacommunities.org/id/london-borough-council/sutton,London Borough of Sutton,15/07/2021,10002880,133.33, ACCESS SUTTON,STORAGE SPACE FOR A CLIENT,Peoples Services,Client Care/Assistance,A61011
http://opendatacommunities.org/id/london-borough-council/sutton,London Borough of Sutton,19/07/2021,10002880,316.64, APPLIANCESDIRECT,AIR COOLING TOWER FOR UNIT 3 LOWER GROUND SQUARE,Peoples Services,Health & Safety Equipment,A40080
http://opendatacommunities.org/id/london-borough-council/sutton,London Borough of Sutton,13/07/2021,10002880,102, BIG BROWN CARRIER BAG,CARRIER BAGS FOR PPE DISTRIBUTION,Peoples Services,Health & Safety Equipment,A40080
http://opendatacommunities.org/id/london-borough-council/sutton,London Borough of Sutton,13/07/2021,10002880,41.58, ULTRA SECURE LTD,DOOR CHIMES FOR UNIT 2 LOWER GROUND SQUARE,Peoples Services,Health & Safety Equipment,A40080
http://opendatacommunities.org/id/london-borough-council/sutton,London Borough of Sutton,13/07/2021,10002880,29.17, RM SUBSCRIPTION,SKILLS FOR CARE SUBSCRIPTION,Peoples Services,Miscellaneous Expenses,A49000
http://opendatacommunities.org/id/london-borough-council/sutton,London Borough of Sutton,02/07/2021,10002880,112.47, ARGOS LTD,MICROWAVES FOR START CLIENTS EMERGENCIES,Peoples Services,Miscellaneous Expenses,A49000
http://opendatacommunities.org/id/london-borough-council/sutton,London Borough of Sutton,01/07/2021,10002880,169.58, HIGHSTREETVOUCHERS,SAINSBURY'S FOOD VOUCHERS FOR START CLIENTS EMERGENCIES,Peoples Services,Miscellaneous Expenses,A49000
http://opendatacommunities.org/id/london-borough-council/sutton,London Borough of Sutton,16/07/2021,10002880,209.83, CS MORRISONS GIFT CARD,FOOD VOUCHERS FOR START CLIENTS EMERGENCIES,Peoples Services,Miscellaneous Expenses,A49000
http://opendatacommunities.org/id/london-borough-council/sutton,London Borough of Sutton,23/07/2021,10002880,211.15, ASDA STORES LTD,FOOD VOUCHERS FOR START CLIENTS,Peoples Services,Miscellaneous Expenses,A49000
http://opendatacommunities.org/id/london-borough-council/sutton,London Borough of Sutton,14/07/2021,10002880,45, ALLIUM,FUNERALWREATHFELTHAM,Peoples Services,Funeral Expenses,A44220
http://opendatacommunities.org/id/london-borough-council/sutton,London Borough of Sutton,13/07/2021,10002880,11, LBSUTTON MOTO,DEATHCERTFELTHAM,Peoples Services,Funeral Expenses,A44220
http://opendatacommunities.org/id/london-borough-council/sutton,London Borough of Sutton,16/07/2021,10002880,102, ST RAPHAELS HOSPICE,DONATION ST RAPHAEL'S HOSPICE 102.00 160721,Health and Wellbeing,Publicity,A44266
http://opendatacommunities.org/id/london-borough-council/sutton,London Borough of Sutton,08/07/2021,10002880,39.99, ADOBE STOCK,ADOBE 070721 47.99,Health and Wellbeing,Publicity,A44266
http://opendatacommunities.org/id/london-borough-council/sutton,London Borough of Sutton,30/06/2021,10002880,66.87, MAILCHIMP,MAILCHIMP 300621 80.24,Health and Wellbeing,Publicity,A44266
http://opendatacommunities.org/id/london-borough-council/sutton,London Borough of Sutton,15/07/2021,10002880,87.46, KLARNA POUNDSHOP.COM,HEALTH & SAFETY,Health and Wellbeing,Other Premises Costs,A29040
http://opendatacommunities.org/id/london-borough-council/sutton,London Borough of Sutton,21/07/2021,10002880,222.37, AMZNMKTPLACE AMAZON.CO,"SPLIT - 15.6 INCH LAPTOP (INTEL CELERON 64-BIT, 8GB DDR3 RAM, 128GB SSD, 10000MAH BATTERY, HD WEBCAM, WINDOWS 10 OS PREINSTALLED, 1920 * 1080 FHD IPS DISPLAY) (108.47%)",Peoples Services,LAC - Education,A44280
http://opendatacommunities.org/id/london-borough-council/sutton,London Borough of Sutton,21/07/2021,10002880,-17.36, AMZNMKTPLACE AMAZON.CO,BALANCING ENTRY AMOUNT (-25.41%),Peoples Services,LAC - Education,A44280
http://opendatacommunities.org/id/london-borough-council/sutton,London Borough of Sutton,21/07/2021,10002880,14.81, AMAZON.CO.UK 163W07YT5,SPLIT - LONGMAN PHOTO DICTIONARY (100%),Peoples Services,LAC - Education,A44280
http://opendatacommunities.org/id/london-borough-council/sutton,London Borough of Sutton,20/07/2021,10002880,6.98, AMZNMKTPLACE,SPLIT - AN ANGEL FOR MAY (100%),Peoples Services,LAC - Education,A44280
http://opendatacommunities.org/id/london-borough-council/sutton,London Borough of Sutton,19/07/2021,10002880,2.76, AMZNMKTPLACE,"SPLIT - LUNDYBRIGHT CE CERTIFIED MEDICAL MASK, 3 LAYER TYPE 1, WHITE AND BLUE (PACK OF 50 MASKS) (9.5%)",Peoples Services,LAC - Education,A44280
http://opendatacommunities.org/id/london-borough-council/sutton,London Borough of Sutton,19/07/2021,10002880,6.45, AMZNMKTPLACE,SPLIT - THE CRY OF THE WOLF (18.52%),Peoples Services,LAC - Education,A44280
http://opendatacommunities.org/id/london-borough-council/sutton,London Borough of Sutton,19/07/2021,10002880,6.99, AMZNMKTPLACE,SPLIT - BURNING ISSY (20.07%),Peoples Services,LAC - Education,A44280
http://opendatacommunities.org/id/london-borough-council/sutton,London Borough of Sutton,19/07/2021,10002880,6.99, AMZNMKTPLACE,SPLIT - A BEAUTIFUL LIE (20.07%),Peoples Services,LAC - Education,A44280
http://opendatacommunities.org/id/london-borough-council/sutton,London Borough of Sutton,19/07/2021,10002880,9.24, AMZNMKTPLACE,"SPLIT - PANDAHALL ELITE 10PCS 27X21CM RECTANGLE KRAFT PAPER POUCHES GIFT SHOPPING BAGS WITH NYLON THREAD, BURLYWOOD (31.84%)",Peoples Services,LAC - Education,A44280
http://opendatacommunities.org/id/london-borough-council/sutton,London Borough of Sutton,19/07/2021,10002880,23.57, AMZNMKTPLACE,"SPLIT - CAMBRIDGE JOTTER, A4 NOTEBOOK, WIREBOUND, LINED, 200 PAGE, PACK OF 6 (18.08%)",Peoples Services,LAC - Education,A44280
http://opendatacommunities.org/id/london-borough-council/sutton,London Borough of Sutton,19/07/2021,10002880,106.82, AMZNMKTPLACE,"SPLIT - BIC SILVER SET - 1 NOTEBOOK, 3 BALL PENS/1 GEL PEN/1 ROLLER PEN/1 PERMANENT MARKER/ 1 MECHANICAL PENCIL (81.92%)",Peoples Services,LAC - Education,A44280
http://opendatacommunities.org/id/london-borough-council/sutton,London Borough of Sutton,17/07/2021,10002880,4.82, AMZNMKTPLACE,SPLIT - C: LETTER C INITIAL.  A 6X9 MONOGRAMMED COLLEGE RULED NOTEBOOK FOR MEN (8.62%),Peoples Services,LAC - Education,A44280
http://opendatacommunities.org/id/london-borough-council/sutton,London Borough of Sutton,17/07/2021,10002880,6.31, AMZNMKTPLACE,SPLIT - DOING IT (11.29%),Peoples Services,LAC - Education,A44280
http://opendatacommunities.org/id/london-borough-council/sutton,London Borough of Sutton,17/07/2021,10002880,4.81, AMZNMKTPLACE,SPLIT - V: LETTER V INITIAL.  A 6X9 MONOGRAMMED COLLEGE RULED NOTEBOOK FOR MEN (8.61%),Peoples Services,LAC - Education,A44280
http://opendatacommunities.org/id/london-borough-council/sutton,London Borough of Sutton,17/07/2021,10002880,4.82, AMZNMKTPLACE,SPLIT - H: LETTER H INITIAL.  A 6X9 MONOGRAMMED COLLEGE RULED NOTEBOOK FOR MEN (8.62%),Peoples Services,LAC - Education,A44280
http://opendatacommunities.org/id/london-borough-council/sutton,London Borough of Sutton,17/07/2021,10002880,4.84, AMZNMKTPLACE,SPLIT - A: LETTER A INITIAL.  A 6X9 MONOGRAMMED COLLEGE RULED NOTEBOOK FOR MEN (8.66%),Peoples Services,LAC - Education,A44280
http://opendatacommunities.org/id/london-borough-council/sutton,London Borough of Sutton,17/07/2021,10002880,4.81, AMZNMKTPLACE,SPLIT - R: LETTER R INITIAL.  A 6X9 MONOGRAMMED COLLEGE RULED NOTEBOOK FOR MEN (8.61%),Peoples Services,LAC - Education,A44280
http://opendatacommunities.org/id/london-borough-council/sutton,London Borough of Sutton,17/07/2021,10002880,4.81, AMZNMKTPLACE,SPLIT - P: LETTER P INITIAL.  A 6X9 MONOGRAMMED COLLEGE RULED NOTEBOOK FOR MEN (8.61%),Peoples Services,LAC - Education,A44280
http://opendatacommunities.org/id/london-borough-council/sutton,London Borough of Sutton,17/07/2021,10002880,4.81, AMZNMKTPLACE,SPLIT - S: LETTER S INITIAL.  A 6X9 MONOGRAMMED COLLEGE RULED NOTEBOOK FOR MEN (8.61%),Peoples Services,LAC - Education,A44280
http://opendatacommunities.org/id/london-borough-council/sutton,London Borough of Sutton,17/07/2021,10002880,4.82, AMZNMKTPLACE,SPLIT - L: LETTER L INITIAL.  A 6X9 MONOGRAMMED COLLEGE RULED NOTEBOOK FOR MEN (8.62%),Peoples Services,LAC - Education,A44280
http://opendatacommunities.org/id/london-borough-council/sutton,London Borough of Sutton,17/07/2021,10002880,4.82, AMZNMKTPLACE,SPLIT - J: LETTER J INITIAL.  A 6X9 MONOGRAMMED COLLEGE RULED NOTEBOOK FOR MEN (8.62%),Peoples Services,LAC - Education,A44280
http://opendatacommunities.org/id/london-borough-council/sutton,London Borough of Sutton,17/07/2021,10002880,5.18, AMZNMKTPLACE,SPLIT - BIC CRISTAL ORIGINAL BALLPOINT PENS MEDIUM TIP 1.0 MM PACK OF 2 PACKS OF 10 ASSORTED COLOURS (11.13%),Peoples Services,LAC - Education,A44280
http://opendatacommunities.org/id/london-borough-council/sutton,London Borough of Sutton,15/07/2021,10002880,3.34, AMZNMKTPLACE,SPLIT - THE LOST WITCH (54.4%),Peoples Services,LAC - Education,A44280
http://opendatacommunities.org/id/london-borough-council/sutton,London Borough of Sutton,15/07/2021,10002880,2.8, AMZNMKTPLACE,BALANCING ENTRY AMOUNT (45.6%),Peoples Services,LAC - Education,A44280
http://opendatacommunities.org/id/london-borough-council/sutton,London Borough of Sutton,15/07/2021,10002880,3.11, AMZNMKTPLACE,SPLIT - THE BABY AND FLY PIE (100%),Peoples Services,LAC - Education,A44280
http://opendatacommunities.org/id/london-borough-council/sutton,London Borough of Sutton,14/07/2021,10002880,5.74, AMZNMKTPLACE,SPLIT - THE HIT (100%),Peoples Services,LAC - Education,A44280
http://opendatacommunities.org/id/london-borough-council/sutton,London Borough of Sutton,14/07/2021,10002880,100, RUSSELL SCHOOL TRU,RUSSELL SCHOOL ENTRY EXAMS,Peoples Services,LAC - Education,A44280
http://opendatacommunities.org/id/london-borough-council/sutton,London Borough of Sutton,14/07/2021,10002880,5.75, AMZNMKTPLACE,SPLIT - OUT OF HEART (100%),Peoples Services,LAC - Education,A44280
http://opendatacommunities.org/id/london-borough-council/sutton,London Borough of Sutton,11/07/2021,10002880,8.68, AMAZON.CO.UK HG0C81LU5,SPLIT - THE WIMPY KID MOVIE DIARY: HOW GREG HEFFLEY WENT HOLLYWOOD (DIARY OF A WIMPY KID) (45.28%),Peoples Services,LAC - Education,A44280
http://opendatacommunities.org/id/london-borough-council/sutton,London Borough of Sutton,11/07/2021,10002880,4, AMAZON.CO.UK HG0C81LU5,SPLIT - DIARY OF A WIMPY KID: WRECKING BALL (BOOK 14) (20.87%),Peoples Services,LAC - Education,A44280
http://opendatacommunities.org/id/london-borough-council/sutton,London Borough of Sutton,11/07/2021,10002880,6.49, AMAZON.CO.UK HG0C81LU5,SPLIT - DIARY OF A WIMPY KID: THE DEEP END (BOOK 15) (33.85%),Peoples Services,LAC - Education,A44280
http://opendatacommunities.org/id/london-borough-council/sutton,London Borough of Sutton,10/07/2021,10002880,4, AMAZON.CO.UK 1M0BT34Y5,SPLIT - DIARY OF A WIMPY KID: THE GETAWAY (BOOK 12) (44.49%),Peoples Services,LAC - Education,A44280
http://opendatacommunities.org/id/london-borough-council/sutton,London Borough of Sutton,10/07/2021,10002880,4.99, AMAZON.CO.UK 1M0BT34Y5,SPLIT - DIARY OF A WIMPY KID: THE MELTDOWN (BOOK 13) (55.51%),Peoples Services,LAC - Education,A44280
http://opendatacommunities.org/id/london-borough-council/sutton,London Borough of Sutton,06/07/2021,10002880,225.5, INCLUSIVE GROUP,INCLUSIVE EDUCATION SWITCHES,Peoples Services,LAC - Education,A44280
http://opendatacommunities.org/id/london-borough-council/sutton,London Borough of Sutton,04/07/2021,10002880,7.31, AMAZON.CO.UK 203926A34,SPLIT - FUNCTIONAL SKILLS MATHS: EDEXCEL ENTRY LEVEL 3 - STUDY & TEST PRACTICE (FOR 2021 & BEYOND) (CGP FUNCTIONAL SKILLS) (25.61%),Peoples Services,LAC - Education,A44280
http://opendatacommunities.org/id/london-borough-council/sutton,London Borough of Sutton,04/07/2021,10002880,15.29, AMAZON.CO.UK 203926A34,SPLIT - DARI-ENGLISH/ENGLISH-DARI PRACTICAL DICTIONARY (53.57%),Peoples Services,LAC - Education,A44280
http://opendatacommunities.org/id/london-borough-council/sutton,London Borough of Sutton,04/07/2021,10002880,5.5, AMAZON.CO.UK 203926A34,SPLIT - ENGLISH VISUAL DICTIONARY: A PHOTO GUIDE TO EVERYDAY WORDS AND PHRASES IN ENGLISH (COLLINS VISUAL DICTIONARY) (20.81%),Peoples Services,LAC - Education,A44280
